{"text_format":"1","workbook":"xlsx","n_sheets":5,"sheets":["RZIS","Headers","Footers","Printer","Aux"],"not_rendered":{"charts":0,"images":0,"macros":1,"external_links":0,"defined_names":4,"comments":0,"pivot_tables":0},"unopened":[],"bounds":{"document_bytes":16777216,"sheet_cells":100000,"rows_first":2000,"rows_last":500,"rows_between":2000,"halvings":0,"cell_chars":16384,"cell_head_chars":4096},"cells_cut":0,"cells_raw":0,"read":"whole","date_system":"1900"}

{"sheet":"RZIS","index":0,"n_rows":57,"n_cols":5,"rows_kept":57,"cut":false,"hidden":false,"merged":[[2,0,2,1],[2,3,2,4],[3,0,3,1],[4,0,7,1],[8,0,8,1],[8,3,8,4],[4,3,6,4],[9,3,9,4],[11,0,11,2],[15,0,15,2],[16,0,16,2],[17,0,17,2],[18,0,18,2],[12,0,12,2],[13,0,13,2],[14,0,14,2],[9,0,9,1],[19,0,19,2],[20,0,20,2],[21,0,21,2],[22,0,22,2],[23,0,23,2],[24,0,24,2],[25,0,25,2],[26,0,26,2],[27,0,27,2],[28,0,28,2],[34,0,34,2],[35,0,35,2],[36,0,36,2],[37,0,37,2],[38,0,38,2],[29,0,29,2],[30,0,30,2],[31,0,31,2],[32,0,32,2],[33,0,33,2],[43,0,43,2],[44,0,44,2],[47,0,47,2],[48,0,48,2],[39,0,39,2],[40,0,40,2],[41,0,41,2],[42,0,42,2],[54,0,54,2],[55,0,55,2],[56,0,56,2],[49,0,49,2],[45,0,45,2],[46,0,46,2]]}
[]
[]
["Nazwa i adres ",null,null,"Adresat"]
["jednostki sprawozdawczej",null,"Rachunek zysków i strat jednostki "]
["Ministerstwo Klimatu i Środowiska,\n ul. Wawelska 52/54, 00-922 Warszawa",null,"(wariant porównawczy)","Ministerstwo Finansów, \nFunduszy i Polityki Regionalnej, \nul. Świętokrzyska 12, 00-916 Warszawa"]
[]
[]
[]
["……………….………………….."]
["Numer identyfikacyjny REGON",null,"2020-12-31","…………………………………...………….."]
["001064858"]
[null,null,null,"Stan na koniec roku poprzedniego","Stan na koniec roku bieżącego"]
["A. Przychody netto z podstawowej działalności operacyjnej",null,null,{"$f":"D14+D15+D16+D17+D18+D19","v":5652696544.21},{"$f":"E14+E15+E16+E17+E18+E19","v":12681005112.08}]
["I. Przychody netto ze sprzedaży produktów",null,null,4885766.92,2603332.7200000002]
["II. Zmiana stanu produktów (zwiększenie - wartość dodatnia, zmniejszenie - wartość ujemna)",null,null,71325.710000000006,20318663.66]
["III. Koszt wytworzenia produktów na własne potrzeby jednostki",null,null,0,0]
["IV. Przychody netto ze sprzedaży towarów i materiałów",null,null,0,0]
["V. Dotacje na finansowanie działalności podstawowej",null,null,0,0]
["VI. Przychody z tytułu dochodów budżetowych",null,null,5647739451.5799999,12658083115.700001]
["B. Koszty działalności operacyjnej",null,null,{"$f":"D21+D22+D23+D24+D25+D27+D26+D28+D29+D30","v":613271160.80999994},{"$f":"E21+E22+E23+E24+E25+E27+E26+E28+E29+E30","v":673545114.36000001}]
["I. Amortyzacja",null,null,46040438.649999999,51509874.210000001]
["II. Zużycie materiałów i energii",null,null,45258818.25,52700669.68]
["III. Usługi obce",null,null,132087076.79000001,133119445.52]
["IV. Podatki i opłaty",null,null,69189756.200000003,74268774.090000004]
["V. Wynagrodzenia",null,null,253007359.16999999,292200585.51999998]
["VI. Ubezpieczenia społeczne i inne świadczenia dla pracowników",null,null,58172718.789999999,66130116.899999999]
["VII. Pozostałe koszty rodzajowe",null,null,8294155.8499999996,3087321.98]
["VIII. Wartość sprzedanych towarów i materiałów",null,null,0,0]
["IX. Inne świadczenia finansowane z budżetu",null,null,1220837.1100000001,528215.71]
["X. Pozostałe obciążenia",null,null,0,110.75]
["C. Zysk (strata) z działalności podstawowej (A-B)",null,null,{"$f":"D13-D20","v":5039425383.3999996},{"$f":"E13-E20","v":12007459997.719999}]
["D. Pozostałe przychody operacyjne",null,null,{"$f":"D33+D34+D35","v":6737407.3600000003},{"$f":"E33+E34+E35","v":9346327.3699999992}]
["I. Zysk ze zbycia niefinansowych aktywów trwałych",null,null,7975,5966]
["II. Dotacje",null,null,0,0]
["III. Inne przychody operacyjne",null,null,6729432.3600000003,9340361.3699999992]
["E. Pozostałe koszty operacyjne",null,null,{"$f":"D37+D38","v":39122475.369999997},{"$f":"E37+E38","v":50563446.790000007}]
["I. Koszty inwestycji finansowanych ze środków własnych samorządowych zakładów budżetowych i dochodów jednostek budżetowych gromadzonych na wydzielonym rachunku",null,null,226042.9,205300.59]
["II. Pozostałe koszty operacyjne",null,null,38896432.469999999,50358146.200000003]
["F. Zysk (strata) z działalnośći operacyjnej (C+D-E)",null,null,{"$f":"D31+D32-D36","v":5007040315.3899994},{"$f":"E31+E32-E36","v":11966242878.299999}]
["G. Przychody finansowe",null,null,{"$f":"D41+D42+D43","v":1555057.89},{"$f":"E41+E42+E43","v":6771927.4699999997}]
["I. Dywidendy i udziały w zyskach",null,null,0,0]
["II. Odsetki",null,null,1405209.63,6746316.54]
["III. Inne",null,null,149848.26,25610.93]
["H. Koszty finansowe",null,null,{"$f":"D45+D46","v":2573640.67},{"$f":"E45+E46","v":7917944.5500000007}]
["I. Odsetki",null,null,2039437.34,5030035.07]
["II. Inne",null,null,534203.32999999996,2887909.48]
["I. Zysk (strata) brutto (F+G-H)",null,null,{"$f":"D39+D40-D44","v":5006021732.6099997},{"$f":"E39+E40-E44","v":11965096861.219999}]
["J. Podatek dochodowy",null,null,0,0]
["K. Pozostałe obowiązkowe zmniejszenia zysku (zwiększenia straty)",null,null,0,0]
["L. Zysk (strata) netto (I-J-K)",null,null,{"$f":"D47-D48-D49","v":5006021732.6099997},{"$f":"E47-E48-E49","v":11965096861.219999}]
[]
["Informacje uzupełniajace istotne dla oceny rzetelności i przejrzystości sytuacji finansowej:"]
[]
["Rachunek Zysków i strat został pomniejszony o kwoty wzajemnych rozliczeń dotyczących pozycji:"]
["A.I. Przychody netto ze sprzedaży produktów",null,null,null,1400]
["B.III. Usługi obce",null,null,null,30707.1]
["D.III. Inne przychody operacyjne",null,null,null,29307.1]

{"sheet":"Headers","index":1,"n_rows":12,"n_cols":27,"rows_kept":12,"cut":false,"hidden":true,"merged":[[9,0,9,1],[9,3,9,4],[11,0,11,2],[2,0,2,1],[2,3,2,4],[3,0,3,1],[4,0,7,1],[8,0,8,1],[8,3,8,4]]}
[null,null,null,null,null,null,null,null,null,null,null,null,null,null,null,null,null,null,null,null,null,null,null,null,null,null,16469]
[null,null,null,null,null,null,null,null,null,null,null,null,null,null,null,null,null,null,null,null,null,null,null,null,null,null,161]
["Nazwa i adres ",null,null,"Adresat",null,null,null,null,null,null,null,null,null,null,null,null,null,null,null,null,null,null,null,null,null,null,93]
["jednostki sprawozdawczej",null,"Rachunek zysków i strat jednostki ",null,null,null,null,null,null,null,null,null,null,null,null,null,null,null,null,null,null,null,null,null,null,null,"2008-01-01"]
[null,null,"(wariant porównawczy)",null,null,null,null,null,null,null,null,null,null,null,null,null,null,null,null,null,null,null,null,null,null,null,"2008-12-31"]
[null,null,null,null,null,null,null,null,null,null,null,null,null,null,null,null,null,null,null,null,null,null,null,null,null,null,2008]
[null,null,null,null,null,null,null,null,null,null,null,null,null,null,null,null,null,null,null,null,null,null,null,null,null,null,"R"]
[null,null,null,null,null,null,null,null,null,null,null,null,null,null,null,null,null,null,null,null,null,null,null,null,null,null,"PJB"]
["……………….…………………..",null,null,null,null,null,null,null,null,null,null,null,null,null,null,null,null,null,null,null,null,null,null,null,null,null,"N"]
["Numer identyfikacyjny REGON",null,"2018-12-31","…………………………………...…………..",null," "]
[]
[null,null,null,"Stan na koniec roku poprzedniego","Stan na koniec roku bieżącego"]

{"sheet":"Footers","index":2,"n_rows":8,"n_cols":4,"rows_kept":8,"cut":false,"hidden":true,"merged":[[5,0,5,1],[4,0,4,1],[6,0,6,1],[7,0,7,1],[4,3,4,4],[5,3,5,4],[6,3,6,4],[7,3,7,4]]}
[]
[]
[]
[]
[".................................................................",null,null,"................................................................."]
["Rola dla podpisu pierwszego",null,null,"Rola dla podpisu drugiego"]
[" imię i nazwisko",null,null," imię i nazwisko"]
["(data i godzina z pola audytowego)",null,null,"(data i godzina z pola audytowego)"]

{"sheet":"Printer","index":3,"n_rows":59,"n_cols":5,"rows_kept":59,"cut":false,"hidden":true,"merged":[[56,0,56,1],[56,3,56,4],[57,0,57,1],[57,3,57,4],[58,0,58,1],[58,3,58,4],[2,0,2,1],[2,3,2,4],[3,0,3,1],[4,0,7,1],[8,0,8,1],[8,3,8,4],[20,0,20,2],[9,0,9,1],[9,3,9,4],[11,0,11,2],[12,0,12,2],[13,0,13,2],[14,0,14,2],[15,0,15,2],[16,0,16,2],[17,0,17,2],[18,0,18,2],[19,0,19,2],[32,0,32,2],[21,0,21,2],[22,0,22,2],[23,0,23,2],[24,0,24,2],[25,0,25,2],[26,0,26,2],[27,0,27,2],[28,0,28,2],[29,0,29,2],[30,0,30,2],[31,0,31,2],[44,0,44,2],[33,0,33,2],[34,0,34,2],[35,0,35,2],[36,0,36,2],[37,0,37,2],[38,0,38,2],[39,0,39,2],[40,0,40,2],[41,0,41,2],[42,0,42,2],[43,0,43,2],[55,0,55,1],[55,3,55,4],[45,0,45,2],[46,0,46,2],[47,0,47,2],[48,0,48,2],[49,0,49,2]]}
[]
[]
["Nazwa i adres ",null,null,"Adresat"]
["jednostki sprawozdawczej",null,"Rachunek zysków i strat jednostki "]
[null,null,"(wariant porównawczy)"]
[]
[]
[]
["……………….………………….."]
["Numer identyfikacyjny REGON",null,"2018-12-31","…………………………………...………….."]
[]
[null,null,null,"Stan na koniec roku poprzedniego","Stan na koniec roku bieżącego"]
["A. Przychody netto z podstawowej działalności operacyjnej",null,null,2693463836.8299999,5627104598.8400002]
["I. Przychody netto ze sprzedaży produktów",null,null,4298204.83,4158161.2]
["II. Zmiana stanu produktów (zwiększenie - wartość dodatnia, zmniejszenie - wartość ujemna)",null,null,-42648.78,-695157.98]
["III. Koszt wytworzenia produktów na własne potrzeby jednostki",null,null,0,0]
["IV. Przychody netto ze sprzedaży towarów i materiałów",null,null,0,0]
["V. Dotacje na finansowanie działalności podstawowej",null,null,0,0]
["VI. Przychody z tytułu dochodów budżetowych",null,null,2689208280.7800002,5623641595.6199999]
["B. Koszty działalności operacyjnej",null,null,429177677,391736279.19]
["I. Amortyzacja",null,null,9956288.1300000008,10403890.609999999]
["II. Zużycie materiałów i energii",null,null,17603509.329999998,19882890.48]
["III. Usługi obce",null,null,91599673,104962442.04000001]
["IV. Podatki i opłaty",null,null,95167689.25,37800467.93]
["V. Wynagrodzenia",null,null,167386588.16999999,171676883.33000001]
["VI. Ubezpieczenia społeczne i inne świadczenia dla pracowników",null,null,38137516.93,39074079.100000001]
["VII. Pozostałe koszty rodzajowe",null,null,8596511.3300000001,7186433.5700000003]
["VIII. Wartość sprzedanych towarów i materiałów",null,null,0,0]
["IX. Inne świadczenia finansowane z budżetu",null,null,729069.86,749192.13]
["X. Pozostałe obciążenia",null,null,831,0]
["C. Zysk (strata) z działalności podstawowej (A-B)",null,null,2264286159.8299999,5235368319.6499996]
["D. Pozostałe przychody operacyjne",null,null,3180226.66,200922979.69999999]
["I. Zysk ze zbycia niefinansowych aktywów trwałych",null,null,18889,42753.5]
["II. Dotacje",null,null,0,0]
["III. Inne przychody operacyjne",null,null,3161337.66,200880226.19999999]
["E. Pozostałe koszty operacyjne",null,null,98012861.150000006,203909617.13]
["I. Koszty inwestycji finansowanych ze środków własnych samorządowych zakładów budżetowych i dochodów jednostek budżetowych gromadzonych na wydzielonym rachunku",null,null,31431.759999999998,122816.74]
["II. Pozostałe koszty operacyjne",null,null,97981429.390000001,203786800.38999999]
["F. Zysk (strata) z działalnośći operacyjnej (C+D-E)",null,null,2169453525.3400002,5232381682.2200003]
["G. Przychody finansowe",null,null,2011118.66,1374575.45]
["I. Dywidendy i udziały w zyskach",null,null,0,0]
["II. Odsetki",null,null,1387100.79,1369790.01]
["III. Inne",null,null,624017.87,4785.4399999999996]
["H. Koszty finansowe",null,null,22498189.43,7854248.3899999997]
["I. Odsetki",null,null,13041570.49,5998983.3099999996]
["II. Inne",null,null,9456618.9399999995,1855265.08]
["I. Zysk (strata) brutto (F+G-H)",null,null,2148966454.5700002,5225902009.2799997]
["J. Podatek dochodowy",null,null,0,0]
["K. Pozostałe obowiązkowe zmniejszenia zysku (zwiększenia straty)",null,null,0,0]
["L. Zysk (strata) netto (I-J-K)",null,null,2148966454.5700002,5225902009.2799997]
[]
[]
[]
[]
[]
[".................................................................",null,null,"................................................................."]
["Rola dla podpisu pierwszego",null,null,"Rola dla podpisu drugiego"]
[" imię i nazwisko",null,null," imię i nazwisko"]
["(data i godzina z pola audytowego)",null,null,"(data i godzina z pola audytowego)"]

{"sheet":"Aux","index":4,"n_rows":50,"n_cols":3,"rows_kept":50,"cut":false,"hidden":true,"merged":[]}
["-1860","-","41"]
["RZIS.AGGR"]
["RZIS.AGGR.NEW"]
["BU"]
["2018"]
["Y01.2018"]
["wer. 1 @ 2019-03-27 11:31:30"]
[57,57]
[null,51]
[]
[]
[]
["RZIS.POZ","RZIS.POZ.10","A. Przychody netto z podstawowej działalności operacyjnej"]
["RZIS.POZ","RZIS.POZ.11","I. Przychody netto ze sprzedaży produktów"]
["RZIS.POZ","RZIS.POZ.12","II. Zmiana stanu produktów (zwiększenie - wartość dodatnia, zmniejszenie - wartość ujemna)"]
["RZIS.POZ","RZIS.POZ.13","III. Koszt wytworzenia produktów na własne potrzeby jednostki"]
["RZIS.POZ","RZIS.POZ.14","IV. Przychody netto ze sprzedaży towarów i materiałów"]
["RZIS.POZ","RZIS.POZ.15","V. Dotacje na finansowanie działalności podstawowej"]
["RZIS.POZ","RZIS.POZ.16","VI. Przychody z tytułu dochodów budżetowych"]
["RZIS.POZ","RZIS.POZ.17","B. Koszty działalności operacyjnej"]
["RZIS.POZ","RZIS.POZ.18","I. Amortyzacja"]
["RZIS.POZ","RZIS.POZ.19","II. Zużycie materiałów i energii"]
["RZIS.POZ","RZIS.POZ.20","III. Usługi obce"]
["RZIS.POZ","RZIS.POZ.21","IV. Podatki i opłaty"]
["RZIS.POZ","RZIS.POZ.22","V. Wynagrodzenia"]
["RZIS.POZ","RZIS.POZ.23","VI. Ubezpieczenia społeczne i inne świadczenia dla pracowników"]
["RZIS.POZ","RZIS.POZ.24","VII. Pozostałe koszty rodzajowe"]
["RZIS.POZ","RZIS.POZ.25","VIII. Wartość sprzedanych towarów i materiałów"]
["RZIS.POZ","RZIS.POZ.26","IX. Inne świadczenia finansowane z budżetu"]
["RZIS.POZ","RZIS.POZ.27","X. Pozostałe obciążenia"]
["RZIS.POZ","RZIS.POZ.28","C. Zysk (strata) z działalności podstawowej (A-B)"]
["RZIS.POZ","RZIS.POZ.29","D. Pozostałe przychody operacyjne"]
["RZIS.POZ","RZIS.POZ.30","I. Zysk ze zbycia niefinansowych aktywów trwałych"]
["RZIS.POZ","RZIS.POZ.31","II. Dotacje"]
["RZIS.POZ","RZIS.POZ.32","III. Inne przychody operacyjne"]
["RZIS.POZ","RZIS.POZ.33","E. Pozostałe koszty operacyjne"]
["RZIS.POZ","RZIS.POZ.34","I. Koszty inwestycji finansowanych ze środków własnych samorządowych zakładów budżetowych i dochodów jednostek budżetowych gromadzonych na wydzielonym rachunku"]
["RZIS.POZ","RZIS.POZ.35","II. Pozostałe koszty operacyjne"]
["RZIS.POZ","RZIS.POZ.36","F. Zysk (strata) z działalnośći operacyjnej (C+D-E)"]
["RZIS.POZ","RZIS.POZ.37","G. Przychody finansowe"]
["RZIS.POZ","RZIS.POZ.38","I. Dywidendy i udziały w zyskach"]
["RZIS.POZ","RZIS.POZ.39","II. Odsetki"]
["RZIS.POZ","RZIS.POZ.40","III. Inne"]
["RZIS.POZ","RZIS.POZ.41","H. Koszty finansowe"]
["RZIS.POZ","RZIS.POZ.42","I. Odsetki"]
["RZIS.POZ","RZIS.POZ.43","II. Inne"]
["RZIS.POZ","RZIS.POZ.48","I. Zysk (strata) brutto (F+G-H)"]
["RZIS.POZ","RZIS.POZ.49","J. Podatek dochodowy"]
["RZIS.POZ","RZIS.POZ.50","K. Pozostałe obowiązkowe zmniejszenia zysku (zwiększenia straty)"]
["RZIS.POZ","RZIS.POZ.51","L. Zysk (strata) netto (I-J-K)"]